fUST/lending_fUST_20250828
["ID","MTS","AMOUNT","RATE_DAILY","PERIOD"]
[381799360,1756353050574,-1635.35,0.00020695,2]
[381799361,1756353050584,-915.11,0.00020695,2]
[381799362,1756353050593,-480.0,0.00020695,2]
[381799363,1756353050602,-480.0,0.00020695,2]
[381799364,1756353050611,-579.31,0.00020695,2]
[381799365,1756353050620,-481.28333104,0.00020695,2]
[381799366,1756353050629,-620.64,0.00020695,2]
[381799367,1756353050639,-550.51,0.00020695,2]
[381799368,1756353050648,-480.0,0.00020695,2]
[381799369,1756353050657,-500.0,0.00020695,2]
[381799370,1756353050666,-732.49,0.00020695,2]
[381799371,1756353050675,-480.0,0.00020695,2]
[381799372,1756353050684,-774.3,0.00020695,2]
[381799373,1756353050694,-759.09,0.00020695,2]
[381799374,1756353050703,-514.24,0.00020695,2]
[381799375,1756353050713,-373.09969257,0.00020695,2]
[381799376,1756353050722,-510.08,0.00020695,2]
[381799377,1756353050731,-821.08,0.00020695,2]
[381799378,1756353050741,-480.0,0.00020695,2]
[381799379,1756353050752,-876.85,0.00020695,2]
[381799380,1756353050761,-1260.83,0.00020695,2]
[381799381,1756353050770,-606.44,0.00020695,2]
[381799382,1756353050779,-577.9,0.00020695,2]
[381799383,1756353050789,-480.0,0.00020695,2]
[381799384,1756353050798,-480.0,0.00020695,2]
[381799385,1756353050808,-480.0,0.00020695,2]
[381799386,1756353050817,-888.03,0.00020695,2]
[381799387,1756353050827,-480.0,0.00020695,2]
[381799388,1756353050836,-382.51777667,0.00020695,2]
[381799389,1756353050845,-515.18,0.00020695,2]
[381799390,1756353050854,-786.69,0.00020695,2]
[381799391,1756353050863,-601.59,0.00020695,2]
[381799392,1756353050873,-480.0,0.00020695,2]
[381799393,1756353050882,-481.42441539,0.00020695,2]
[381799394,1756353050891,-503.79,0.00020695,2]
[381799395,1756353050900,-560.04,0.00020695,2]
[381799396,1756353050909,-1055.19,0.00020695,2]
[381799397,1756353050918,-574.18,0.00020695,2]
[381799398,1756353050927,-533.09,0.00020695,2]
[381799399,1756353050936,-1029.59,0.00020695,2]
[381799400,1756353050946,-708.43,0.00020695,2]
[381799401,1756353050955,-480.0,0.00020695,2]
[381799402,1756353050965,-480.0,0.00020695,2]
[381799403,1756353050975,-516.65,0.00020695,2]
[381799404,1756353050984,-480.0,0.00020695,2]
[381799405,1756353050993,-804.67,0.00020695,2]
[381799406,1756353051002,-480.0,0.00020695,2]
[381799407,1756353051011,-505.22,0.00020695,2]
[381799408,1756353051020,-480.0,0.00020695,2]
[381799409,1756353051029,-480.0,0.00020695,2]
[381799410,1756353051038,-480.0,0.00020695,2]
[381799411,1756353051047,-949.31,0.00020695,2]
[381799412,1756353051057,-508.4,0.00020695,2]
[381799413,1756353051066,-1231.74,0.00020695,2]
[381799414,1756353051076,-833.56,0.00020695,2]
[381799415,1756353051085,-557.08,0.00020695,2]
[381799416,1756353051094,-1165.82,0.00020695,2]
[381799417,1756353051103,-480.0,0.00020695,2]
[381799418,1756353051112,-1428.12,0.00020695,2]
[381799419,1756353051122,-480.0,0.00020695,2]
[381799420,1756353051131,-480.0,0.00020695,2]
[381799421,1756353051141,-660.36,0.00020695,2]
[381799422,1756353051150,-480.0,0.00020695,2]
[381799423,1756353051160,-480.0,0.00020695,2]
[381799424,1756353051169,-480.0,0.00020695,2]
[381799425,1756353051178,-1547.32,0.00020695,2]
[381799426,1756353051193,-480.0,0.00020695,2]
[381799427,1756353051202,-480.0,0.00020695,2]
[381799428,1756353051211,-753.68,0.00020695,2]
[381799429,1756353051220,-604.15,0.00020695,2]
[381799430,1756353051229,-480.0,0.00020695,2]
[381799431,1756353051238,-507.66,0.00020695,2]
[381799432,1756353051247,-216.21874,0.00020695,2]
[381799433,1756353051256,-153.425885,0.00020695,2]
[381799434,1756353051266,-216.21874,0.00020695,2]
[381799435,1756353051275,-216.21874,0.00020695,2]
[381799436,1756353051285,-603.295165,0.00020695,2]
[381799437,1756353051294,-480.0,0.00020695,2]
[381799438,1756353051303,-216.21874,0.00020695,2]
[381799439,1756353051312,-603.295165,0.00020695,2]
[381799440,1756353051321,-480.0,0.00020695,2]
[381799441,1756353051331,-480.0,0.00020695,2]
[381799442,1756353051340,-603.295165,0.00020695,2]
[381799443,1756353051350,-603.295165,0.00020695,2]
[381799444,1756353051361,-518.69,0.00020695,2]
[381799445,1756353051370,-151.0,0.00020695,2]
[381799446,1756353051379,-151.0,0.00020695,2]
[381799447,1756353051388,-480.0,0.00020695,2]
[381799448,1756353051397,-480.0,0.00020695,2]
[381799449,1756353051407,-1496.32,0.00020695,2]
[381799450,1756353051416,-151.0,0.00020695,2]
[381799451,1756353051425,-480.0,0.00020695,2]
[381799452,1756353051434,-151.0,0.00020695,2]
[381799453,1756353051444,-480.0,0.00020695,2]
[381799454,1756353051453,-480.0,0.00020695,2]
[381799455,1756353051462,-1884.77,0.00020695,2]
[381799456,1756353051472,-438.11780381,0.00020695,2]
[381799457,1756353051481,-785.62,0.00020695,2]
[381799458,1756353051490,-777.18,0.00020695,2]
[381799459,1756353051499,-151.0,0.00020695,2]
[381799460,1756353051509,-151.0,0.00020695,2]
[381799461,1756353051518,-480.0,0.00020695,2]
[381799462,1756353051528,-151.0,0.00020695,2]
[381799463,1756353051537,-480.0,0.00020695,2]
[381799464,1756353051546,-151.0,0.00020695,2]
[381799465,1756353051555,-524.15,0.00020695,2]
[381799466,1756353051565,-480.0,0.00020695,2]
[381799467,1756353051574,-1352.82,0.00020695,2]
[381799468,1756353051584,-151.0,0.00020695,2]
[381799469,1756353051593,-1831.595789,0.00020695,2]
[381799470,1756353051602,-1831.595789,0.00020695,2]
[381799471,1756353051611,-151.0,0.00020695,2]
[381799472,1756353051620,-151.0,0.00020695,2]
[381799473,1756353051630,-511.105642,0.00020695,2]
[381799474,1756353051639,-1831.595789,0.00020695,2]
[381799475,1756353051648,-151.0,0.00020695,2]
[381799476,1756353051657,-151.0,0.00020695,2]
[381799477,1756353051666,-511.105642,0.00020695,2]
[381799478,1756353051676,-4048.11,0.00020695,2]
[381799479,1756353051686,-1831.595789,0.00020695,2]
[381799480,1756353051695,-151.0,0.00020695,2]
[381799481,1756353051704,-151.0,0.00020695,2]
[381799482,1756353051714,-511.105642,0.00020695,2]
[381799483,1756353051723,-511.105642,0.00020695,2]
[381799484,1756353051734,-384.864432,0.00020695,2]
[381799485,1756353051744,-151.0,0.00020695,2]
[381799486,1756353051753,-480.0,0.00020695,2]
[381799487,1756353051763,-384.864432,0.00020695,2]
[381799488,1756353051772,-384.864432,0.00020695,2]
[381799489,1756353051782,-384.864432,0.00020695,2]
[381799490,1756353051792,-480.0,0.00020695,2]
[381799491,1756353051801,-151.0,0.00020695,2]
[381799492,1756353051810,-151.0,0.00020695,2]
[381799493,1756353051820,-151.0,0.00020695,2]
[381799494,1756353051829,-480.0,0.00020695,2]
[381799495,1756353051838,-480.0,0.00020695,2]
[381799496,1756353051847,-509.25,0.00020695,2]
[381799497,1756353051857,-2265.57,0.00020695,2]
[381799498,1756353051866,-480.0,0.00020695,2]
[381799499,1756353051875,-480.0,0.00020695,2]
[381799500,1756353051884,-4055.31,0.00020695,2]
[381799501,1756353051893,-622.56,0.00020695,2]
[381799502,1756353051903,-480.0,0.00020695,2]
[381799503,1756353051912,-151.0,0.00020695,2]
[381799504,1756353051922,-151.0,0.00020695,2]
[381799505,1756353051931,-421.977146,0.00020695,2]
[381799506,1756353051941,-986.892753,0.00020695,2]
[381799507,1756353051950,-421.977146,0.00020695,2]
[381799508,1756353051960,-2855.3,0.00020695,2]
[381799509,1756353051970,-986.892753,0.00020695,2]
[381799510,1756353051980,-421.977146,0.00020695,2]
[381799511,1756353051990,-661.55,0.00020695,2]
[381799512,1756353051999,-421.977146,0.00020695,2]
[381799513,1756353052009,-986.892753,0.00020695,2]
[381799514,1756353052018,-986.892753,0.00020695,2]
[381799515,1756353052028,-480.0,0.00020695,2]
[381799516,1756353052038,-151.0,0.00020695,2]
[381799517,1756353052047,-666.32,0.00020695,2]
[381799518,1756353052057,-151.0,0.00020695,2]
[381799519,1756353052066,-151.0,0.00020695,2]
[381799520,1756353052075,-1244.01,0.00020695,2]
[381799521,1756353052085,-151.0,0.00020695,2]
[381799522,1756353052094,-480.0,0.00020695,2]
[381799523,1756353052103,-480.0,0.00020695,2]
[381799524,1756353052113,-717.34,0.00020695,2]
[381799525,1756353052123,-5077.95,0.00020696,2]
[381799526,1756353052132,-334.16192702,0.00020696,2]
[381799527,1756353052141,-2634.82,0.00020696,2]
[381799528,1756353052150,-640.18,0.00020696,2]
[381799529,1756353052159,-2440.58,0.00020696,2]
[381799530,1756353052169,-340.39425777,0.00020696,2]
[381799531,1756353052178,-658.91,0.00020696,2]
[381799532,1756353052191,-1786.91,0.00020696,2]
[381799533,1756353052201,-151.0,0.000207,4]
[381799534,1756353052210,-151.0,0.000207,3]
[381799535,1756353052220,-151.0,0.000207,4]
[381799536,1756353052230,-500.0,0.00020708,2]
[381799537,1756353052239,-828.99,0.00020742,2]
[381799538,1756353052249,-480.0,0.00020742,2]
[381799539,1756353052259,-1766.5,0.00020742,2]
[381799540,1756353052268,-608.84,0.00020742,2]
[381799541,1756353052278,-2618.2481025,0.00020743,2]
[381799542,1756353052287,-480.0,0.00020753,2]
[381799543,1756353052297,-480.0,0.00020753,2]
[381799544,1756353052306,-20771.0597385,0.00020756,2]
[381799545,1756353052316,-500.0,0.00020773,2]
[381799546,1756353052325,-500.0,0.00020773,2]
[381799547,1756353052335,-506.19980553,0.00020773,2]
[381799548,1756353052344,-464.90478575,0.00020773,2]
[381799549,1756353052353,-500.0,0.00020773,2]
[381799550,1756353052362,-500.0,0.00020773,2]
[381799551,1756353052372,-500.0,0.00020773,2]
[381799552,1756353052382,-500.0,0.00020773,2]
[381799553,1756353052391,-501.49623136,0.00020773,2]
[381799554,1756353052400,-500.0,0.00020773,2]
[381799555,1756353052409,-500.0,0.00020773,2]
[381799556,1756353052419,-500.0,0.00020773,2]
[381799557,1756353052428,-500.0,0.00020773,2]
[381799558,1756353052437,-500.0,0.00020773,2]
[381799559,1756353052447,-500.0,0.00020773,2]
[381799560,1756353052456,-500.0,0.00020773,2]
[381799561,1756353052465,-500.0,0.00020773,2]
[381799562,1756353052475,-500.0,0.00020773,2]
[381799563,1756353052484,-562.32358633,0.00020773,2]
[381799564,1756353052494,-500.0,0.00020773,2]
[381799565,1756353052503,-500.0,0.00020773,2]
[381799566,1756353052513,-500.0,0.00020773,2]
[381799567,1756353052522,-613.92623303,0.00020773,2]
[381799568,1756353052531,-500.0,0.00020773,2]
[381799569,1756353052540,-500.0,0.00020773,2]
[381799570,1756353052550,-424.44878294,0.00020773,2]
[381799571,1756353052560,-514.00630012,0.00020773,2]
[381799572,1756353052570,-500.0,0.00020795,2]
[381799573,1756353052581,-2715.12328229,0.00020798,2]
[381799574,1756353052590,-480.0,0.00020798,2]
[381799575,1756353052601,-484.86129962,0.00020798,2]
[381799576,1756353052611,-431.50523187,0.00020798,2]
[381799577,1756353052620,-480.0,0.00020798,2]
[381799578,1756353052630,-480.0,0.00020798,2]
[381799579,1756353052639,-567.14,0.00020798,2]
[381799580,1756353052649,-480.0,0.00020798,2]
[381799581,1756353052658,-480.0,0.00020798,2]
[381799582,1756353052668,-480.0,0.00020798,2]
[381799583,1756353052678,-480.0,0.00020798,2]
[381799584,1756353052688,-361.80949767,0.00020798,2]
[381799585,1756353052702,-480.0,0.00020798,2]
[381799586,1756353052713,-481.68559519,0.00020798,2]
[381799587,1756353052723,-480.0,0.00020798,2]
[381799588,1756353052732,-480.0,0.00020798,2]
[381799589,1756353052741,-486.35,0.00020798,2]
[381799590,1756353052751,-480.0,0.00020798,2]
[381799591,1756353052760,-480.0,0.00020798,2]
[381799592,1756353052770,-480.0,0.00020798,2]
[381799593,1756353052780,-480.0,0.00020798,2]
[381799594,1756353052789,-536.99,0.00020798,2]
[381799595,1756353052799,-480.0,0.00020798,2]
[381799596,1756353052808,-480.0,0.00020798,2]
[381799597,1756353052818,-480.0,0.00020798,2]
[381799598,1756353052828,-480.0,0.00020798,2]
[381799599,1756353052837,-480.0,0.00020798,2]
[381799600,1756353052846,-1272.18,0.00020798,2]
[381799601,1756353052856,-694.08,0.00020798,2]
[381799602,1756353052865,-480.0,0.00020798,2]
[381799603,1756353052875,-802.59,0.00020798,2]
[381799604,1756353052884,-480.0,0.00020798,2]
[381799605,1756353052894,-480.0,0.00020798,2]
[381799606,1756353052903,-480.0,0.00020798,2]
[381799607,1756353052913,-480.0,0.00020798,2]
[381799608,1756353052922,-480.0,0.00020798,2]
[381799609,1756353052932,-480.0,0.00020798,2]
[381799610,1756353052943,-480.0,0.00020798,2]
[381799611,1756353052953,-752.15,0.00020798,2]
[381799612,1756353052962,-480.0,0.00020798,2]
[381799613,1756353052972,-480.0,0.00020798,2]
[381799614,1756353052981,-668.64,0.00020798,2]
[381799615,1756353052991,-480.0,0.00020798,2]
[381799616,1756353053000,-480.0,0.00020798,2]
[381799617,1756353053009,-480.0,0.00020798,2]
[381799618,1756353053019,-480.0,0.00020798,2]
[381799619,1756353053028,-481.49006348,0.00020798,2]
[381799620,1756353053037,-480.0,0.00020798,2]
[381799621,1756353053046,-480.0,0.00020798,2]
[381799622,1756353053056,-480.0,0.00020798,2]
[381799623,1756353053066,-536.52,0.00020798,2]
[381799624,1756353053076,-480.0,0.00020798,2]
[381799625,1756353053085,-480.0,0.00020798,2]
[381799626,1756353053094,-480.0,0.00020798,2]
[381799627,1756353053104,-480.84665749,0.00020798,2]
[381799628,1756353053114,-480.0,0.00020798,2]
[381799629,1756353053123,-480.0,0.00020798,2]
[381799630,1756353053133,-480.0,0.00020798,2]
[381799631,1756353053142,-480.0,0.00020798,2]
[381799632,1756353053151,-480.0,0.00020798,2]
[381799633,1756353053161,-1018.64,0.00020798,2]
[381799634,1756353053170,-480.0,0.00020798,2]
[381799635,1756353053180,-480.0,0.00020798,2]
[381799636,1756353053193,-751.9,0.00020798,2]
[381799637,1756353053203,-481.9635532,0.00020798,2]
[381799638,1756353053213,-480.0,0.00020798,2]
[381799639,1756353053222,-480.0,0.00020798,2]
[381799640,1756353053231,-480.0,0.00020798,2]
[381799641,1756353053240,-763.46,0.00020798,2]
[381799642,1756353053250,-481.88,0.00020798,2]
[381799643,1756353053259,-480.0,0.00020798,2]
[381799644,1756353053268,-480.0,0.00020798,2]
[381799645,1756353053278,-480.0,0.00020798,2]
[381799646,1756353053288,-480.0,0.00020798,2]
[381799647,1756353053298,-480.0,0.00020798,2]
[381799648,1756353053307,-796.92,0.00020798,2]
[381799649,1756353053317,-481.93370763,0.00020798,2]
[381799650,1756353053326,-480.0,0.00020798,2]
[381799651,1756353053336,-1022.96,0.00020798,2]
[381799652,1756353053345,-480.0,0.00020798,2]
[381799653,1756353053355,-413.84430728,0.00020798,2]
[381799654,1756353053365,-922.79,0.00020798,2]
[381799655,1756353053374,-480.0,0.00020798,2]
[381799656,1756353053384,-907.94,0.00020798,2]
[381799657,1756353053394,-742.76,0.00020798,2]
[381799658,1756353053403,-480.0,0.00020798,2]
[381799659,1756353053413,-480.0,0.00020798,2]
[381799660,1756353053423,-480.0,0.00020798,2]
[381799661,1756353053432,-480.0,0.00020798,2]
[381799662,1756353053441,-407.02768599,0.00020798,2]
[381799663,1756353053451,-480.0,0.00020798,2]
[381799664,1756353053460,-480.0,0.00020798,2]
[381799665,1756353053469,-480.0,0.00020798,2]
[381799666,1756353053479,-480.0,0.00020798,2]
[381799667,1756353053489,-480.0,0.00020798,2]
[381799668,1756353053499,-480.0,0.00020798,2]
[381799669,1756353053508,-606.86,0.00020798,2]
[381799670,1756353053518,-641.05,0.00020798,2]
[381799671,1756353053527,-480.0,0.00020798,2]
[381799672,1756353053537,-520.65508412,0.00020798,2]
[381799673,1756353053546,-480.0,0.00020798,2]
[381799674,1756353053555,-844.15,0.00020798,2]
[381799675,1756353053565,-632.17,0.00020798,2]
[381799676,1756353053574,-480.0,0.00020798,2]
[381799677,1756353053583,-480.0,0.00020798,2]
[381799678,1756353053593,-497.63,0.00020798,2]
[381799679,1756353053602,-480.0,0.00020798,2]
[381799680,1756353053611,-953.17,0.00020798,2]
[381799681,1756353053621,-480.0,0.00020798,2]
[381799682,1756353053630,-480.0,0.00020798,2]
[381799683,1756353053640,-599.78,0.00020798,2]
[381799684,1756353053649,-480.0,0.00020798,2]
[381799685,1756353053658,-564.91089389,0.00020798,2]
[381799686,1756353053667,-480.0,0.00020798,2]
[381799687,1756353053677,-480.0,0.00020798,2]
[381799688,1756353053686,-615.47,0.00020798,2]
[381799689,1756353053696,-480.0,0.00020798,2]
[381799690,1756353053706,-528.60947114,0.00020798,2]
[381799691,1756353053715,-517.13,0.00020798,2]
[381799692,1756353053724,-535.3,0.00020798,2]
[381799693,1756353053734,-480.0,0.00020798,2]
[381799694,1756353053743,-480.0,0.00020798,2]
[381799695,1756353053753,-480.0,0.00020798,2]
[381799696,1756353053762,-480.0,0.00020798,2]
[381799697,1756353053772,-480.0,0.00020798,2]
[381799698,1756353053782,-580.44,0.00020798,2]
[381799699,1756353053945,-480.0,0.00020798,2]
[381799700,1756353053954,-480.0,0.00020798,2]
[381799701,1756353053964,-480.0,0.00020798,2]
[381799702,1756353053973,-678.39,0.00020798,2]
[381799703,1756353053981,-480.0,0.00020798,2]
[381799704,1756353053990,-506.5,0.00020798,2]
[381799705,1756353053999,-480.0,0.00020798,2]
[381799706,1756353054008,-260.29899211,0.00020798,2]
[381799707,1756353054017,-480.0,0.00020798,2]
[381799708,1756353054026,-480.0,0.00020798,2]
[381799709,1756353054035,-480.0,0.00020798,2]
[381799710,1756353054044,-480.0,0.00020798,2]
[381799711,1756353054053,-480.0,0.00020798,2]
[381799712,1756353054062,-480.0,0.00020798,2]
[381799713,1756353054071,-480.0,0.00020798,2]
[381799714,1756353054080,-519.09,0.00020798,2]
[381799715,1756353054089,-592.08,0.00020798,2]
[381799716,1756353054098,-1626.13,0.00020798,2]
[381799717,1756353054107,-480.0,0.00020798,2]
[381799718,1756353054116,-480.0,0.00020798,2]
[381799719,1756353054125,-888.67,0.00020798,2]
[381799720,1756353054138,-480.0,0.00020798,2]
[381799721,1756353054154,-480.0,0.00020798,2]
[381799722,1756353054163,-1050.99,0.00020798,2]
[381799723,1756353054173,-480.0,0.00020798,2]
[381799724,1756353054181,-485.36178357,0.00020798,2]
[381799725,1756353054196,-480.0,0.00020798,2]
[381799726,1756353054205,-480.0,0.00020798,2]
[381799727,1756353054213,-610.93,0.00020798,2]
[381799728,1756353054222,-480.0,0.00020798,2]
[381799729,1756353054232,-1445.04,0.00020798,2]
[381799730,1756353054242,-480.0,0.00020798,2]
[381799731,1756353054251,-480.0,0.00020798,2]
[381799732,1756353054261,-1001.33,0.00020798,2]
[381799733,1756353054271,-480.0,0.00020798,2]
[381799734,1756353054280,-480.0,0.00020798,2]
[381799735,1756353054289,-747.72,0.00020798,2]
[381799736,1756353054299,-799.21,0.00020798,2]
[381799737,1756353054307,-510.56,0.00020798,2]
[381799738,1756353054316,-480.0,0.00020798,2]
[381799739,1756353054325,-480.0,0.00020798,2]
[381799740,1756353054335,-500.0,0.00020798,2]
[381799741,1756353054344,-480.0,0.00020798,2]
[381799742,1756353054353,-480.0,0.00020798,2]
[381799743,1756353054362,-480.0,0.00020798,2]
[381799744,1756353054371,-480.0,0.00020798,2]
[381799745,1756353054380,-480.0,0.00020798,2]
[381799746,1756353054390,-480.0,0.00020798,2]
[381799747,1756353054399,-555.670728,0.00020798,2]
[381799748,1756353054407,-572.66,0.00020798,2]
[381799749,1756353054417,-151.0,0.00020798,2]
[381799750,1756353054426,-555.670728,0.00020798,2]
[381799751,1756353054435,-151.0,0.00020798,2]
[381799752,1756353054445,-555.670728,0.00020798,2]
[381799753,1756353054454,-480.0,0.00020798,2]
[381799754,1756353054464,-618.58,0.00020798,2]
[381799755,1756353054473,-555.670728,0.00020798,2]
[381799756,1756353054483,-151.0,0.00020798,2]
[381799757,1756353054492,-481.16516421,0.00020798,2]
[381799758,1756353054502,-151.0,0.00020798,2]
[381799759,1756353054511,-151.0,0.00020798,2]
[381799760,1756353054520,-151.0,0.00020798,2]
[381799761,1756353054530,-151.0,0.00020798,2]
[381799762,1756353054538,-628.99,0.00020798,2]
[381799763,1756353054548,-151.0,0.00020798,2]
[381799764,1756353054557,-480.0,0.00020798,2]
[381799765,1756353054566,-151.0,0.00020798,2]
[381799766,1756353054575,-151.0,0.00020798,2]
[381799767,1756353054584,-480.0,0.00020798,2]
[381799768,1756353054593,-151.0,0.00020798,2]
[381799769,1756353054602,-151.0,0.00020798,2]
[381799770,1756353054611,-480.0,0.00020798,2]
[381799771,1756353054620,-368.061483,0.00020798,2]
[381799772,1756353054629,-368.061483,0.00020798,2]
[381799773,1756353054639,-480.0,0.00020798,2]
[381799774,1756353054648,-151.0,0.00020798,2]
[381799775,1756353054657,-480.0,0.00020798,2]
[381799776,1756353054666,-480.0,0.00020798,2]
[381799777,1756353054676,-368.061483,0.00020798,2]
[381799778,1756353054685,-151.0,0.00020798,2]
[381799779,1756353054695,-368.061483,0.00020798,2]
[381799780,1756353054704,-480.0,0.00020798,2]
[381799781,1756353054712,-151.0,0.00020798,2]
[381799782,1756353054722,-480.0,0.00020798,2]
[381799783,1756353054731,-689.95,0.00020798,2]
[381799784,1756353054740,-480.0,0.00020798,2]
[381799785,1756353054749,-480.0,0.00020798,2]
[381799786,1756353054759,-480.0,0.00020798,2]
[381799787,1756353054768,-204.867884,0.00020798,2]
[381799788,1756353054777,-204.867884,0.00020798,2]
[381799789,1756353054787,-722.05,0.00020798,2]
[381799790,1756353054796,-480.0,0.00020798,2]
[381799791,1756353054805,-204.867884,0.00020798,2]
[381799792,1756353054814,-204.867884,0.00020798,2]
[381799793,1756353054824,-754.93,0.00020798,2]
[381799794,1756353054835,-151.0,0.00020798,2]
[381799795,1756353054845,-480.0,0.00020798,2]
[381799796,1756353054854,-480.0,0.00020798,2]
[381799797,1756353054863,-480.0,0.00020798,2]
[381799798,1756353054873,-608.63,0.00020798,2]
[381799799,1756353054886,-151.0,0.00020798,2]
[381799800,1756353054897,-480.0,0.00020798,2]
[381799801,1756353054907,-151.0,0.00020798,2]
[381799802,1756353054917,-151.0,0.00020798,2]
[381799803,1756353054927,-480.0,0.00020798,2]
[381799804,1756353054938,-151.0,0.00020798,2]
[381799805,1756353054948,-480.0,0.00020798,2]
[381799806,1756353054958,-480.0,0.00020798,2]
[381799807,1756353054967,-151.0,0.00020798,2]
[381799808,1756353054977,-823.24,0.00020798,2]
[381799809,1756353054987,-151.0,0.00020798,2]
[381799810,1756353054996,-480.0,0.00020798,2]
[381799811,1756353055006,-480.0,0.00020798,2]
[381799812,1756353055015,-480.0,0.00020798,2]
[381799813,1756353055025,-480.0,0.00020798,2]
[381799814,1756353055036,-480.0,0.00020798,2]
[381799815,1756353055049,-578.57,0.00020798,2]
[381799816,1756353055059,-480.0,0.00020798,2]
[381799817,1756353055069,-480.0,0.00020798,2]
[381799818,1756353055078,-151.0,0.00020798,2]
[381799819,1756353055089,-557.6,0.00020798,2]
[381799820,1756353055100,-480.0,0.00020798,2]
[381799821,1756353055110,-480.0,0.00020798,2]
[381799822,1756353055120,-480.0,0.00020798,2]
[381799823,1756353055131,-480.0,0.00020798,2]
[381799824,1756353055144,-480.0,0.00020798,2]
[381799825,1756353055155,-480.0,0.00020798,2]
[381799826,1756353055165,-251.945454,0.00020798,2]
[381799827,1756353055175,-480.0,0.00020798,2]
[381799828,1756353055189,-251.945454,0.00020798,2]
[381799829,1756353055199,-480.0,0.00020798,2]
[381799830,1756353055209,-580.46,0.00020798,2]
[381799831,1756353055218,-251.945454,0.00020798,2]
[381799832,1756353055227,-251.945454,0.00020798,2]
[381799833,1756353055237,-480.0,0.00020798,2]
[381799834,1756353055246,-480.0,0.00020798,2]
[381799835,1756353055256,-480.0,0.00020798,2]
[381799836,1756353055265,-674.19,0.00020798,2]
[381799837,1756353055275,-480.0,0.00020798,2]
[381799838,1756353055284,-151.0,0.00020798,2]
[381799839,1756353055293,-672.83,0.00020798,2]
[381799840,1756353055303,-151.573767,0.00020798,2]
[381799841,1756353055312,-151.0,0.00020798,2]
[381799842,1756353055321,-151.0,0.00020798,2]
[381799843,1756353055330,-480.0,0.00020798,2]
[381799844,1756353055339,-996.34,0.00020798,2]
[381799845,1756353055349,-480.0,0.00020798,2]
[381799846,1756353055358,-480.0,0.00020798,2]
[381799847,1756353055368,-480.0,0.00020798,2]
[381799848,1756353055377,-605.91,0.00020798,2]
[381799849,1756353055386,-151.0,0.00020798,2]
[381799850,1756353055396,-480.0,0.00020798,2]
[381799851,1756353055405,-480.0,0.00020798,2]
[381799852,1756353055414,-480.0,0.00020798,2]
[381799853,1756353055425,-480.0,0.00020798,2]
[381799854,1756353055434,-201.478866,0.00020798,2]
[381799855,1756353055444,-201.478866,0.00020798,2]
[381799856,1756353055454,-480.0,0.00020798,2]
[381799857,1756353055463,-480.0,0.00020798,2]
[381799858,1756353055472,-201.478866,0.00020798,2]
[381799859,1756353055482,-201.478866,0.00020798,2]